Workbook

Sheet Sheet1
B1: ニューラルネットワーク構造
B15: ランダム（初期値に使用）
C16: 入力 | H16: 第1層
C17: ｗ１ | D17: ｗ２ | E17: ｂ１ | H17: ｗ１ | I17: ｗ２ | J17: ｗ３ | K17: ｂ１
A18: 第1層 | B18: ｗ１ | C18: =RAND() -> 0.2816098642 | D18: =RAND() -> 0.9987180811 | E18: 0.5673256618 | F18: 第2層 | G18: ｗ１ | H18: =RAND() -> 0.748692403 | I18: =RAND() -> 0.7561865357 | J18: 0.696898771 | K18: 0.4197889644
B19: ｗ２ | C19: =RAND() -> 0.08453560647 | D19: 0.2039056861 | E19: 0.8794249437 | G19: ｗ２ | H19: =RAND() -> 0.2511500316 | I19: 0.797406543 | J19: 0.3785030069 | K19: 0.7251801371
B20: ｗ３ | C20: 0.9928668089 | D20: 0.8319112062 | E20: 0.9334262666
B23: →→→→→→順伝播
C25: 入力値 | F25: 出力 | G25: ｼｸﾞﾓｲﾄﾞ | K25: 出力 | L25: ｿﾌﾄﾏｯｸｽ | M25: 正解
B26: ｘ１ | C26: 1 | E26: ｚ１ | F26: =+C26*C35+C27*D35+E35 -> 1.237903994 | G26: =1/(1+EXP(-F26)) -> 0.7751989634 | J26: ｚ１ | K26: =+G26*H35+G27*I35+G28*J35+K35 -> 2.115181939 | L26: =EXP(-1*K26)/(EXP(-1*K26)+EXP(-1*K27)) -> 0.280032558 | M26: =IF(C29=0,1,0) -> 1
B27: ｘ２ | C27: 0 | E27: ｚ２ | F27: =+C26*C36+C27*D36+E36 -> 1.403000233 | G27: =1/(1+EXP(-F27)) -> 0.8026595487 | J27: ｚ２ | K27: =+G26*H36+G27*I36+G28*J36+K36 -> 1.170881823 | L27: =EXP(-1*K27)/(EXP(-1*K26)+EXP(-1*K27)) -> 0.719967442 | M27: =IF(C29=1,1,0) -> 0
E28: ｚ３ | F28: =+C26*C37+C27*D37+E37 -> 0.4473179983 | G28: =1/(1+EXP(-F28)) -> 0.6100013751
B29: 正解 | C29: 0
B30: *)ｚ１=０、ｚ２＝１
B31: 学習率 | C31: 0.1
C33: 入力 | H33: 第1層
C34: ｗ１ | D34: ｗ２ | E34: ｂ１ | H34: ｗ１ | I34: ｗ２ | J34: ｗ３ | K34: ｂ１
A35: 第1層 | B35: ｗ１ | C35: 0.618796692 | D35: 0.4579058613 | E35: 0.6191073023 | F35: 第2層 | G35: ｗ１ | H35: 0.6888191846 | I35: 0.53127516 | J35: 0.7794214485 | K35: 0.6793287856
B36: ｗ２ | C36: 0.7721851644 | D36: 0.4528714916 | E36: 0.6308150691 | G36: ｗ２ | H36: 0.5017040221 | I36: 0.2036118931 | J36: 0.1896963342 | K36: 0.5028153297
B37: ｗ３ | C37: 0.08787249329 | D37: 0.7396859249 | E37: 0.359445505
B40: 逆伝播←←←←←
F41: ｼｸﾞﾓｲﾄﾞ | G41: 出力 | M41: 誤差
E42: ｚ１ | F42: =1/(1+EXP(-G42)) -> 0.5336283626 | G42: =+M42*H48+M43*H49 -> 0.1347168249 | M42: =M26-+L26 -> 0.719967442
E43: ｚ２ | F43: =1/(1+EXP(-G43)) -> 0.55870472 | G43: =+M42*I48+M43*I49 -> 0.2359068841 | M43: =M27-+L27 -> -0.719967442
E44: ｚ３ | F44: =1/(1+EXP(-G44)) -> 0.6045793715 | G44: =+M42*J48+M43*J49 -> 0.424582882
C46: 入力 | H46: 第1層
C47: ｗ１ | D47: ｗ２ | E47: ｂ１ | H47: ｗ１ | I47: ｗ２ | J47: ｗ３ | K47: ｂ１
A48: 第1層 | B48: ｗ１ | C48: =+C35 -> 0.618796692 | D48: =+D35 -> 0.4579058613 | E48: 0.6191073023 | F48: 第2層 | G48: ｗ１ | H48: =+H35 -> 0.6888191846 | I48: 0.53127516 | J48: 0.7794214485 | K48: 0.6793287856
B49: ｗ２ | C49: =+C36 -> 0.7721851644 | D49: 0.4528714916 | E49: 0.6308150691 | G49: ｗ２ | H49: 0.5017040221 | I49: 0.2036118931 | J49: 0.1896963342 | K49: 0.5028153297
B50: ｗ３ | C50: =+C37 -> 0.08787249329 | D50: =+D37 -> 0.7396859249 | E50: 0.359445505
C52: 入力 | H52: 第1層
C53: ｗ１ | D53: ｗ２ | E53: ｂ１ | H53: ｗ１ | I53: ｗ２ | J53: ｗ３ | K53: ｂ１
A54: 第1層 | B54: ｗ１ | C54: =+C26*F42 -> 0.5336283626 | D54: =+C27*G42 -> 0 | E54: =+F42 -> 0.5336283626 | F54: 第2層 | G54: ｗ１ | H54: =K26*G26 -> 1.639686847 | I54: =K26*G27 -> 1.697770981 | J54: =K26*G28 -> 1.290263891 | K54: =+M42 -> 0.719967442
B55: ｗ２ | C55: =+C26*F43 -> 0.55870472 | D55: =+C27*G43 -> 0 | E55: =+F43 -> 0.55870472 | G55: ｗ２ | H55: =K27*G26 -> 0.9076663751 | I55: =K27*G27 -> 0.9398194753 | J55: =K27*G28 -> 0.7142395219 | K55: =+M43 -> -0.719967442
B56: ｗ３ | C56: =+C26*F44 -> 0.6045793715 | D56: =+C27*G44 -> 0 | E56: =+F44 -> 0.6045793715
C58: 入力 | H58: 第1層
C59: ｗ１ | D59: ｗ２ | E59: ｂ１ | H59: ｗ１ | I59: ｗ２ | J59: ｗ３ | K59: ｂ１
A60: 第1層 | B60: ｗ１ | C60: =C48-(C54*$C$31) -> 0.5654338557 | D60: =D48-(D54*$C$31) -> 0.4579058613 | E60: =E48-(E54*$C$31) -> 0.565744466 | F60: 第2層 | G60: ｗ１ | H60: =H48-(H54*$C$31) -> 0.5248505 | I60: =I48-(I54*$C$31) -> 0.3614980619 | J60: =J48-(J54*$C$31) -> 0.6503950593 | K60: =K48-(K54*$C$31) -> 0.6073320414
B61: ｗ２ | C61: =C49-(C55*$C$31) -> 0.7163146924 | D61: =D49-(D55*$C$31) -> 0.4528714916 | E61: =E49-(E55*$C$31) -> 0.5749445971 | G61: ｗ２ | H61: =H49-(H55*$C$31) -> 0.4109373846 | I61: 0.1096299456 | J61: =J49-(J55*$C$31) -> 0.1182723821 | K61: =K49-(K55*$C$31) -> 0.5748120739
B62: ｗ３ | C62: =C50-(C56*$C$31) -> 0.02741455614 | D62: =D50-(D56*$C$31) -> 0.7396859249 | E62: =E50-(E56*$C$31) -> 0.2989875678
